{"text_format":"1","workbook":"xlsx","n_sheets":4,"sheets":["Instructions","Form","Sheet2","Sheet3"],"not_rendered":{"charts":0,"images":0,"macros":1,"external_links":0,"defined_names":0,"comments":0,"pivot_tables":0},"unopened":[],"bounds":{"document_bytes":16777216,"sheet_cells":100000,"rows_first":2000,"rows_last":500,"rows_between":2000,"halvings":0,"cell_chars":16384,"cell_head_chars":4096},"cells_cut":0,"cells_raw":0,"read":"whole","date_system":"1900"}

{"sheet":"Instructions","index":0,"n_rows":0,"n_cols":0,"rows_kept":0,"cut":false,"hidden":false,"merged":[]}

{"sheet":"Form","index":1,"n_rows":28,"n_cols":6,"rows_kept":28,"cut":false,"hidden":false,"merged":[]}
[]
[null,"Substance Information"]
[null,"Property","Value"]
[null,"Name"]
[null,"Molecular Weight (g/mole)"]
[null,"Vapour Pressure (Pa)"]
[null,"Density (g/mL)"]
[null,"Inhalation, systemic, long term DNEL (mg/m3)"]
[null,"Inhalation, systemic, short term DNEL (mg/m3)",null,null,"Target RCR",0.9]
[null,"Inhalation, local, long term DNEL (mg/m3)"]
[null,"Inhalation, local, short term DNEL (mg/m3)"]
[null,"Dermal, systemic, long term DNEL (mg/kg/day)"]
[null,"Dermal, systemic, short term DNEL (mg/kg/day)"]
[null,"Dermal, local, long term DNEL (mg/cm2)"]
[null,"Dermal, local, short term DNEL (mg/cm2)"]
[null,"Oral DNEL (mg/kg/day)"]
[null,"Eye DNEL"]
[]
[null,"Uses"]
[null,"GES","Y/N"]
[null,"Agrochemical","n"]
[null,"Cleaning","n"]
[null,"Coating","n"]
[null,"Deicing","n"]
[null,"Fuels","n"]
[null,"Functional Fluids","n"]
[null,"Lubricants","n"]
[null,"Water Treatment Chemicals","n"]

{"sheet":"Sheet2","index":2,"n_rows":50,"n_cols":6,"rows_kept":50,"cut":false,"hidden":true,"merged":[]}
["D","E","PC","Text","alttext","test"]
["PC1:Adhesives, sealants","Glues, hobby use",{"$f":"LEFT(Table3[[#This Row],[D]],2)&\"_\"&MID(Table3[[#This Row],[D]],3,IF(ISNUMBER(FIND(\"_\",Table3[[#This Row],[D]],1)),FIND(\"_\",Table3[[#This Row],[D]],1),FIND(\":\",Table3[[#This Row],[D]],1))-3)","v":"PC_1"},{"$f":"IF((Table3[[#This Row],[E]]=\"\"),RIGHT(Table3[[#This Row],[D]],LEN(Table3[[#This Row],[D]])-FIND(\":\",Table3[[#This Row],[D]],1)),RIGHT(Table3[[#This Row],[D]],LEN(Table3[[#This Row],[D]])-FIND(\":\",Table3[[#This Row],[D]],1))&\": \"&Table3[[#This Row],[E]])","v":"Adhesives, sealants: Glues, hobby use"},{"$f":"RIGHT(Table3[[#This Row],[D]],LEN(Table3[[#This Row],[D]])-FIND(\":\",Table3[[#This Row],[D]],1))","v":"Adhesives, sealants"},{"$f":"IF(ISNUMBER(FIND(\"_\",Table3[[#This Row],[D]],1)),FIND(\"_\",Table3[[#This Row],[D]],1)-1,FIND(\":\",Table3[[#This Row],[D]],1)-1)","v":3}]
["PC1:Adhesives, sealants","Glues DIY-use (carpet glue, tile glue, wood parquet glue)",{"$f":"LEFT(Table3[[#This Row],[D]],2)&\"_\"&MID(Table3[[#This Row],[D]],3,IF(ISNUMBER(FIND(\"_\",Table3[[#This Row],[D]],1)),FIND(\"_\",Table3[[#This Row],[D]],1),FIND(\":\",Table3[[#This Row],[D]],1))-3)","v":"PC_1"},{"$f":"IF((Table3[[#This Row],[E]]=\"\"),RIGHT(Table3[[#This Row],[D]],LEN(Table3[[#This Row],[D]])-FIND(\":\",Table3[[#This Row],[D]],1)),RIGHT(Table3[[#This Row],[D]],LEN(Table3[[#This Row],[D]])-FIND(\":\",Table3[[#This Row],[D]],1))&\": \"&Table3[[#This Row],[E]])","v":"Adhesives, sealants: Glues DIY-use (carpet glue, tile glue, wood parquet glue)"},{"$f":"RIGHT(Table3[[#This Row],[D]],LEN(Table3[[#This Row],[D]])-FIND(\":\",Table3[[#This Row],[D]],1))","v":"Adhesives, sealants"},{"$f":"IF(ISNUMBER(FIND(\"_\",Table3[[#This Row],[D]],1)),FIND(\"_\",Table3[[#This Row],[D]],1)-1,FIND(\":\",Table3[[#This Row],[D]],1)-1)","v":3}]
["PC1:Adhesives, sealants","Glue from spray",{"$f":"LEFT(Table3[[#This Row],[D]],2)&\"_\"&MID(Table3[[#This Row],[D]],3,IF(ISNUMBER(FIND(\"_\",Table3[[#This Row],[D]],1)),FIND(\"_\",Table3[[#This Row],[D]],1),FIND(\":\",Table3[[#This Row],[D]],1))-3)","v":"PC_1"},{"$f":"IF((Table3[[#This Row],[E]]=\"\"),RIGHT(Table3[[#This Row],[D]],LEN(Table3[[#This Row],[D]])-FIND(\":\",Table3[[#This Row],[D]],1)),RIGHT(Table3[[#This Row],[D]],LEN(Table3[[#This Row],[D]])-FIND(\":\",Table3[[#This Row],[D]],1))&\": \"&Table3[[#This Row],[E]])","v":"Adhesives, sealants: Glue from spray"},{"$f":"RIGHT(Table3[[#This Row],[D]],LEN(Table3[[#This Row],[D]])-FIND(\":\",Table3[[#This Row],[D]],1))","v":"Adhesives, sealants"},{"$f":"IF(ISNUMBER(FIND(\"_\",Table3[[#This Row],[D]],1)),FIND(\"_\",Table3[[#This Row],[D]],1)-1,FIND(\":\",Table3[[#This Row],[D]],1)-1)","v":3}]
["PC1:Adhesives, sealants","Sealants ",{"$f":"LEFT(Table3[[#This Row],[D]],2)&\"_\"&MID(Table3[[#This Row],[D]],3,IF(ISNUMBER(FIND(\"_\",Table3[[#This Row],[D]],1)),FIND(\"_\",Table3[[#This Row],[D]],1),FIND(\":\",Table3[[#This Row],[D]],1))-3)","v":"PC_1"},{"$f":"IF((Table3[[#This Row],[E]]=\"\"),RIGHT(Table3[[#This Row],[D]],LEN(Table3[[#This Row],[D]])-FIND(\":\",Table3[[#This Row],[D]],1)),RIGHT(Table3[[#This Row],[D]],LEN(Table3[[#This Row],[D]])-FIND(\":\",Table3[[#This Row],[D]],1))&\": \"&Table3[[#This Row],[E]])","v":"Adhesives, sealants: Sealants "},{"$f":"RIGHT(Table3[[#This Row],[D]],LEN(Table3[[#This Row],[D]])-FIND(\":\",Table3[[#This Row],[D]],1))","v":"Adhesives, sealants"},{"$f":"IF(ISNUMBER(FIND(\"_\",Table3[[#This Row],[D]],1)),FIND(\"_\",Table3[[#This Row],[D]],1)-1,FIND(\":\",Table3[[#This Row],[D]],1)-1)","v":3}]
["PC3:Air care products","Air care, instant action (aerosol sprays)",{"$f":"LEFT(Table3[[#This Row],[D]],2)&\"_\"&MID(Table3[[#This Row],[D]],3,IF(ISNUMBER(FIND(\"_\",Table3[[#This Row],[D]],1)),FIND(\"_\",Table3[[#This Row],[D]],1),FIND(\":\",Table3[[#This Row],[D]],1))-3)","v":"PC_3"},{"$f":"IF((Table3[[#This Row],[E]]=\"\"),RIGHT(Table3[[#This Row],[D]],LEN(Table3[[#This Row],[D]])-FIND(\":\",Table3[[#This Row],[D]],1)),RIGHT(Table3[[#This Row],[D]],LEN(Table3[[#This Row],[D]])-FIND(\":\",Table3[[#This Row],[D]],1))&\": \"&Table3[[#This Row],[E]])","v":"Air care products: Air care, instant action (aerosol sprays)"},{"$f":"RIGHT(Table3[[#This Row],[D]],LEN(Table3[[#This Row],[D]])-FIND(\":\",Table3[[#This Row],[D]],1))","v":"Air care products"},{"$f":"IF(ISNUMBER(FIND(\"_\",Table3[[#This Row],[D]],1)),FIND(\"_\",Table3[[#This Row],[D]],1)-1,FIND(\":\",Table3[[#This Row],[D]],1)-1)","v":3}]
["PC3:Air care products","Air care, continuous action (solid and liquid)",{"$f":"LEFT(Table3[[#This Row],[D]],2)&\"_\"&MID(Table3[[#This Row],[D]],3,IF(ISNUMBER(FIND(\"_\",Table3[[#This Row],[D]],1)),FIND(\"_\",Table3[[#This Row],[D]],1),FIND(\":\",Table3[[#This Row],[D]],1))-3)","v":"PC_3"},{"$f":"IF((Table3[[#This Row],[E]]=\"\"),RIGHT(Table3[[#This Row],[D]],LEN(Table3[[#This Row],[D]])-FIND(\":\",Table3[[#This Row],[D]],1)),RIGHT(Table3[[#This Row],[D]],LEN(Table3[[#This Row],[D]])-FIND(\":\",Table3[[#This Row],[D]],1))&\": \"&Table3[[#This Row],[E]])","v":"Air care products: Air care, continuous action (solid and liquid)"},{"$f":"RIGHT(Table3[[#This Row],[D]],LEN(Table3[[#This Row],[D]])-FIND(\":\",Table3[[#This Row],[D]],1))","v":"Air care products"},{"$f":"IF(ISNUMBER(FIND(\"_\",Table3[[#This Row],[D]],1)),FIND(\"_\",Table3[[#This Row],[D]],1)-1,FIND(\":\",Table3[[#This Row],[D]],1)-1)","v":3}]
["PC4_n:Anti-freeze and de-icing products","Washing car window",{"$f":"LEFT(Table3[[#This Row],[D]],2)&\"_\"&MID(Table3[[#This Row],[D]],3,IF(ISNUMBER(FIND(\"_\",Table3[[#This Row],[D]],1)),FIND(\"_\",Table3[[#This Row],[D]],1),FIND(\":\",Table3[[#This Row],[D]],1))-3)","v":"PC_4"},{"$f":"IF((Table3[[#This Row],[E]]=\"\"),RIGHT(Table3[[#This Row],[D]],LEN(Table3[[#This Row],[D]])-FIND(\":\",Table3[[#This Row],[D]],1)),RIGHT(Table3[[#This Row],[D]],LEN(Table3[[#This Row],[D]])-FIND(\":\",Table3[[#This Row],[D]],1))&\": \"&Table3[[#This Row],[E]])","v":"Anti-freeze and de-icing products: Washing car window"},{"$f":"RIGHT(Table3[[#This Row],[D]],LEN(Table3[[#This Row],[D]])-FIND(\":\",Table3[[#This Row],[D]],1))","v":"Anti-freeze and de-icing products"},{"$f":"IF(ISNUMBER(FIND(\"_\",Table3[[#This Row],[D]],1)),FIND(\"_\",Table3[[#This Row],[D]],1)-1,FIND(\":\",Table3[[#This Row],[D]],1)-1)","v":3}]
["PC4_n:Anti-freeze and de-icing products","Pouring into radiator",{"$f":"LEFT(Table3[[#This Row],[D]],2)&\"_\"&MID(Table3[[#This Row],[D]],3,IF(ISNUMBER(FIND(\"_\",Table3[[#This Row],[D]],1)),FIND(\"_\",Table3[[#This Row],[D]],1),FIND(\":\",Table3[[#This Row],[D]],1))-3)","v":"PC_4"},{"$f":"IF((Table3[[#This Row],[E]]=\"\"),RIGHT(Table3[[#This Row],[D]],LEN(Table3[[#This Row],[D]])-FIND(\":\",Table3[[#This Row],[D]],1)),RIGHT(Table3[[#This Row],[D]],LEN(Table3[[#This Row],[D]])-FIND(\":\",Table3[[#This Row],[D]],1))&\": \"&Table3[[#This Row],[E]])","v":"Anti-freeze and de-icing products: Pouring into radiator"},{"$f":"RIGHT(Table3[[#This Row],[D]],LEN(Table3[[#This Row],[D]])-FIND(\":\",Table3[[#This Row],[D]],1))","v":"Anti-freeze and de-icing products"},{"$f":"IF(ISNUMBER(FIND(\"_\",Table3[[#This Row],[D]],1)),FIND(\"_\",Table3[[#This Row],[D]],1)-1,FIND(\":\",Table3[[#This Row],[D]],1)-1)","v":3}]
["PC4_n:Anti-freeze and de-icing products","Lock de-icer",{"$f":"LEFT(Table3[[#This Row],[D]],2)&\"_\"&MID(Table3[[#This Row],[D]],3,IF(ISNUMBER(FIND(\"_\",Table3[[#This Row],[D]],1)),FIND(\"_\",Table3[[#This Row],[D]],1),FIND(\":\",Table3[[#This Row],[D]],1))-3)","v":"PC_4"},{"$f":"IF((Table3[[#This Row],[E]]=\"\"),RIGHT(Table3[[#This Row],[D]],LEN(Table3[[#This Row],[D]])-FIND(\":\",Table3[[#This Row],[D]],1)),RIGHT(Table3[[#This Row],[D]],LEN(Table3[[#This Row],[D]])-FIND(\":\",Table3[[#This Row],[D]],1))&\": \"&Table3[[#This Row],[E]])","v":"Anti-freeze and de-icing products: Lock de-icer"},{"$f":"RIGHT(Table3[[#This Row],[D]],LEN(Table3[[#This Row],[D]])-FIND(\":\",Table3[[#This Row],[D]],1))","v":"Anti-freeze and de-icing products"},{"$f":"IF(ISNUMBER(FIND(\"_\",Table3[[#This Row],[D]],1)),FIND(\"_\",Table3[[#This Row],[D]],1)-1,FIND(\":\",Table3[[#This Row],[D]],1)-1)","v":3}]
["PC8_n: Biocidal products (excipient use only for solvent products)","Laundry and dish washing products",{"$f":"LEFT(Table3[[#This Row],[D]],2)&\"_\"&MID(Table3[[#This Row],[D]],3,IF(ISNUMBER(FIND(\"_\",Table3[[#This Row],[D]],1)),FIND(\"_\",Table3[[#This Row],[D]],1),FIND(\":\",Table3[[#This Row],[D]],1))-3)","v":"PC_8"},{"$f":"IF((Table3[[#This Row],[E]]=\"\"),RIGHT(Table3[[#This Row],[D]],LEN(Table3[[#This Row],[D]])-FIND(\":\",Table3[[#This Row],[D]],1)),RIGHT(Table3[[#This Row],[D]],LEN(Table3[[#This Row],[D]])-FIND(\":\",Table3[[#This Row],[D]],1))&\": \"&Table3[[#This Row],[E]])","v":" Biocidal products (excipient use only for solvent products): Laundry and dish washing products"},{"$f":"RIGHT(Table3[[#This Row],[D]],LEN(Table3[[#This Row],[D]])-FIND(\":\",Table3[[#This Row],[D]],1))","v":" Biocidal products (excipient use only for solvent products)"},{"$f":"IF(ISNUMBER(FIND(\"_\",Table3[[#This Row],[D]],1)),FIND(\"_\",Table3[[#This Row],[D]],1)-1,FIND(\":\",Table3[[#This Row],[D]],1)-1)","v":3}]
["PC8_n: Biocidal products (excipient use only for solvent products)","Cleaners, liquids (all purpose cleaners, sanitary products, floor cleaners, glass cleaners, carpet cleaners, metal cleaners ) ",{"$f":"LEFT(Table3[[#This Row],[D]],2)&\"_\"&MID(Table3[[#This Row],[D]],3,IF(ISNUMBER(FIND(\"_\",Table3[[#This Row],[D]],1)),FIND(\"_\",Table3[[#This Row],[D]],1),FIND(\":\",Table3[[#This Row],[D]],1))-3)","v":"PC_8"},{"$f":"IF((Table3[[#This Row],[E]]=\"\"),RIGHT(Table3[[#This Row],[D]],LEN(Table3[[#This Row],[D]])-FIND(\":\",Table3[[#This Row],[D]],1)),RIGHT(Table3[[#This Row],[D]],LEN(Table3[[#This Row],[D]])-FIND(\":\",Table3[[#This Row],[D]],1))&\": \"&Table3[[#This Row],[E]])","v":" Biocidal products (excipient use only for solvent products): Cleaners, liquids (all purpose cleaners, sanitary products, floor cleaners, glass cleaners, carpet cleaners, metal cleaners ) "},{"$f":"RIGHT(Table3[[#This Row],[D]],LEN(Table3[[#This Row],[D]])-FIND(\":\",Table3[[#This Row],[D]],1))","v":" Biocidal products (excipient use only for solvent products)"},{"$f":"IF(ISNUMBER(FIND(\"_\",Table3[[#This Row],[D]],1)),FIND(\"_\",Table3[[#This Row],[D]],1)-1,FIND(\":\",Table3[[#This Row],[D]],1)-1)","v":3}]
["PC8_n: Biocidal products (excipient use only for solvent products)","Cleaners, trigger sprays (all purpose cleaners, sanitary products,  glass cleaners) ",{"$f":"LEFT(Table3[[#This Row],[D]],2)&\"_\"&MID(Table3[[#This Row],[D]],3,IF(ISNUMBER(FIND(\"_\",Table3[[#This Row],[D]],1)),FIND(\"_\",Table3[[#This Row],[D]],1),FIND(\":\",Table3[[#This Row],[D]],1))-3)","v":"PC_8"},{"$f":"IF((Table3[[#This Row],[E]]=\"\"),RIGHT(Table3[[#This Row],[D]],LEN(Table3[[#This Row],[D]])-FIND(\":\",Table3[[#This Row],[D]],1)),RIGHT(Table3[[#This Row],[D]],LEN(Table3[[#This Row],[D]])-FIND(\":\",Table3[[#This Row],[D]],1))&\": \"&Table3[[#This Row],[E]])","v":" Biocidal products (excipient use only for solvent products): Cleaners, trigger sprays (all purpose cleaners, sanitary products,  glass cleaners) "},{"$f":"RIGHT(Table3[[#This Row],[D]],LEN(Table3[[#This Row],[D]])-FIND(\":\",Table3[[#This Row],[D]],1))","v":" Biocidal products (excipient use only for solvent products)"},{"$f":"IF(ISNUMBER(FIND(\"_\",Table3[[#This Row],[D]],1)),FIND(\"_\",Table3[[#This Row],[D]],1)-1,FIND(\":\",Table3[[#This Row],[D]],1)-1)","v":3}]
["PC9a:Coatings, paints, thinners,paint removers","Waterborne latex wall paint",{"$f":"LEFT(Table3[[#This Row],[D]],2)&\"_\"&MID(Table3[[#This Row],[D]],3,IF(ISNUMBER(FIND(\"_\",Table3[[#This Row],[D]],1)),FIND(\"_\",Table3[[#This Row],[D]],1),FIND(\":\",Table3[[#This Row],[D]],1))-3)","v":"PC_9a"},{"$f":"IF((Table3[[#This Row],[E]]=\"\"),RIGHT(Table3[[#This Row],[D]],LEN(Table3[[#This Row],[D]])-FIND(\":\",Table3[[#This Row],[D]],1)),RIGHT(Table3[[#This Row],[D]],LEN(Table3[[#This Row],[D]])-FIND(\":\",Table3[[#This Row],[D]],1))&\": \"&Table3[[#This Row],[E]])","v":"Coatings, paints, thinners,paint removers: Waterborne latex wall paint"},{"$f":"RIGHT(Table3[[#This Row],[D]],LEN(Table3[[#This Row],[D]])-FIND(\":\",Table3[[#This Row],[D]],1))","v":"Coatings, paints, thinners,paint removers"},{"$f":"IF(ISNUMBER(FIND(\"_\",Table3[[#This Row],[D]],1)),FIND(\"_\",Table3[[#This Row],[D]],1)-1,FIND(\":\",Table3[[#This Row],[D]],1)-1)","v":4}]
["PC9a:Coatings, paints, thinners,paint removers","Solvent rich, high solid, water borne paint",{"$f":"LEFT(Table3[[#This Row],[D]],2)&\"_\"&MID(Table3[[#This Row],[D]],3,IF(ISNUMBER(FIND(\"_\",Table3[[#This Row],[D]],1)),FIND(\"_\",Table3[[#This Row],[D]],1),FIND(\":\",Table3[[#This Row],[D]],1))-3)","v":"PC_9a"},{"$f":"IF((Table3[[#This Row],[E]]=\"\"),RIGHT(Table3[[#This Row],[D]],LEN(Table3[[#This Row],[D]])-FIND(\":\",Table3[[#This Row],[D]],1)),RIGHT(Table3[[#This Row],[D]],LEN(Table3[[#This Row],[D]])-FIND(\":\",Table3[[#This Row],[D]],1))&\": \"&Table3[[#This Row],[E]])","v":"Coatings, paints, thinners,paint removers: Solvent rich, high solid, water borne paint"},{"$f":"RIGHT(Table3[[#This Row],[D]],LEN(Table3[[#This Row],[D]])-FIND(\":\",Table3[[#This Row],[D]],1))","v":"Coatings, paints, thinners,paint removers"},{"$f":"IF(ISNUMBER(FIND(\"_\",Table3[[#This Row],[D]],1)),FIND(\"_\",Table3[[#This Row],[D]],1)-1,FIND(\":\",Table3[[#This Row],[D]],1)-1)","v":4}]
["PC9a:Coatings, paints, thinners,paint removers","Aerosol spray can ",{"$f":"LEFT(Table3[[#This Row],[D]],2)&\"_\"&MID(Table3[[#This Row],[D]],3,IF(ISNUMBER(FIND(\"_\",Table3[[#This Row],[D]],1)),FIND(\"_\",Table3[[#This Row],[D]],1),FIND(\":\",Table3[[#This Row],[D]],1))-3)","v":"PC_9a"},{"$f":"IF((Table3[[#This Row],[E]]=\"\"),RIGHT(Table3[[#This Row],[D]],LEN(Table3[[#This Row],[D]])-FIND(\":\",Table3[[#This Row],[D]],1)),RIGHT(Table3[[#This Row],[D]],LEN(Table3[[#This Row],[D]])-FIND(\":\",Table3[[#This Row],[D]],1))&\": \"&Table3[[#This Row],[E]])","v":"Coatings, paints, thinners,paint removers: Aerosol spray can "},{"$f":"RIGHT(Table3[[#This Row],[D]],LEN(Table3[[#This Row],[D]])-FIND(\":\",Table3[[#This Row],[D]],1))","v":"Coatings, paints, thinners,paint removers"},{"$f":"IF(ISNUMBER(FIND(\"_\",Table3[[#This Row],[D]],1)),FIND(\"_\",Table3[[#This Row],[D]],1)-1,FIND(\":\",Table3[[#This Row],[D]],1)-1)","v":4}]
["PC9a:Coatings, paints, thinners,paint removers","Removers (paint-, glue-, wall paper-, sealant-remover)",{"$f":"LEFT(Table3[[#This Row],[D]],2)&\"_\"&MID(Table3[[#This Row],[D]],3,IF(ISNUMBER(FIND(\"_\",Table3[[#This Row],[D]],1)),FIND(\"_\",Table3[[#This Row],[D]],1),FIND(\":\",Table3[[#This Row],[D]],1))-3)","v":"PC_9a"},{"$f":"IF((Table3[[#This Row],[E]]=\"\"),RIGHT(Table3[[#This Row],[D]],LEN(Table3[[#This Row],[D]])-FIND(\":\",Table3[[#This Row],[D]],1)),RIGHT(Table3[[#This Row],[D]],LEN(Table3[[#This Row],[D]])-FIND(\":\",Table3[[#This Row],[D]],1))&\": \"&Table3[[#This Row],[E]])","v":"Coatings, paints, thinners,paint removers: Removers (paint-, glue-, wall paper-, sealant-remover)"},{"$f":"RIGHT(Table3[[#This Row],[D]],LEN(Table3[[#This Row],[D]])-FIND(\":\",Table3[[#This Row],[D]],1))","v":"Coatings, paints, thinners,paint removers"},{"$f":"IF(ISNUMBER(FIND(\"_\",Table3[[#This Row],[D]],1)),FIND(\"_\",Table3[[#This Row],[D]],1)-1,FIND(\":\",Table3[[#This Row],[D]],1)-1)","v":4}]
["PC9b:Fillers, putties, plasters, modeling clay","Fillers and putty ",{"$f":"LEFT(Table3[[#This Row],[D]],2)&\"_\"&MID(Table3[[#This Row],[D]],3,IF(ISNUMBER(FIND(\"_\",Table3[[#This Row],[D]],1)),FIND(\"_\",Table3[[#This Row],[D]],1),FIND(\":\",Table3[[#This Row],[D]],1))-3)","v":"PC_9b"},{"$f":"IF((Table3[[#This Row],[E]]=\"\"),RIGHT(Table3[[#This Row],[D]],LEN(Table3[[#This Row],[D]])-FIND(\":\",Table3[[#This Row],[D]],1)),RIGHT(Table3[[#This Row],[D]],LEN(Table3[[#This Row],[D]])-FIND(\":\",Table3[[#This Row],[D]],1))&\": \"&Table3[[#This Row],[E]])","v":"Fillers, putties, plasters, modeling clay: Fillers and putty "},{"$f":"RIGHT(Table3[[#This Row],[D]],LEN(Table3[[#This Row],[D]])-FIND(\":\",Table3[[#This Row],[D]],1))","v":"Fillers, putties, plasters, modeling clay"},{"$f":"IF(ISNUMBER(FIND(\"_\",Table3[[#This Row],[D]],1)),FIND(\"_\",Table3[[#This Row],[D]],1)-1,FIND(\":\",Table3[[#This Row],[D]],1)-1)","v":4}]
["PC9b:Fillers, putties, plasters, modeling clay","Plasters and floor equalizers",{"$f":"LEFT(Table3[[#This Row],[D]],2)&\"_\"&MID(Table3[[#This Row],[D]],3,IF(ISNUMBER(FIND(\"_\",Table3[[#This Row],[D]],1)),FIND(\"_\",Table3[[#This Row],[D]],1),FIND(\":\",Table3[[#This Row],[D]],1))-3)","v":"PC_9b"},{"$f":"IF((Table3[[#This Row],[E]]=\"\"),RIGHT(Table3[[#This Row],[D]],LEN(Table3[[#This Row],[D]])-FIND(\":\",Table3[[#This Row],[D]],1)),RIGHT(Table3[[#This Row],[D]],LEN(Table3[[#This Row],[D]])-FIND(\":\",Table3[[#This Row],[D]],1))&\": \"&Table3[[#This Row],[E]])","v":"Fillers, putties, plasters, modeling clay: Plasters and floor equalizers"},{"$f":"RIGHT(Table3[[#This Row],[D]],LEN(Table3[[#This Row],[D]])-FIND(\":\",Table3[[#This Row],[D]],1))","v":"Fillers, putties, plasters, modeling clay"},{"$f":"IF(ISNUMBER(FIND(\"_\",Table3[[#This Row],[D]],1)),FIND(\"_\",Table3[[#This Row],[D]],1)-1,FIND(\":\",Table3[[#This Row],[D]],1)-1)","v":4}]
["PC9b:Fillers, putties, plasters, modeling clay","Modelling clay",{"$f":"LEFT(Table3[[#This Row],[D]],2)&\"_\"&MID(Table3[[#This Row],[D]],3,IF(ISNUMBER(FIND(\"_\",Table3[[#This Row],[D]],1)),FIND(\"_\",Table3[[#This Row],[D]],1),FIND(\":\",Table3[[#This Row],[D]],1))-3)","v":"PC_9b"},{"$f":"IF((Table3[[#This Row],[E]]=\"\"),RIGHT(Table3[[#This Row],[D]],LEN(Table3[[#This Row],[D]])-FIND(\":\",Table3[[#This Row],[D]],1)),RIGHT(Table3[[#This Row],[D]],LEN(Table3[[#This Row],[D]])-FIND(\":\",Table3[[#This Row],[D]],1))&\": \"&Table3[[#This Row],[E]])","v":"Fillers, putties, plasters, modeling clay: Modelling clay"},{"$f":"RIGHT(Table3[[#This Row],[D]],LEN(Table3[[#This Row],[D]])-FIND(\":\",Table3[[#This Row],[D]],1))","v":"Fillers, putties, plasters, modeling clay"},{"$f":"IF(ISNUMBER(FIND(\"_\",Table3[[#This Row],[D]],1)),FIND(\"_\",Table3[[#This Row],[D]],1)-1,FIND(\":\",Table3[[#This Row],[D]],1)-1)","v":4}]
["PC9c:Finger paints ","Finger paints",{"$f":"LEFT(Table3[[#This Row],[D]],2)&\"_\"&MID(Table3[[#This Row],[D]],3,IF(ISNUMBER(FIND(\"_\",Table3[[#This Row],[D]],1)),FIND(\"_\",Table3[[#This Row],[D]],1),FIND(\":\",Table3[[#This Row],[D]],1))-3)","v":"PC_9c"},{"$f":"IF((Table3[[#This Row],[E]]=\"\"),RIGHT(Table3[[#This Row],[D]],LEN(Table3[[#This Row],[D]])-FIND(\":\",Table3[[#This Row],[D]],1)),RIGHT(Table3[[#This Row],[D]],LEN(Table3[[#This Row],[D]])-FIND(\":\",Table3[[#This Row],[D]],1))&\": \"&Table3[[#This Row],[E]])","v":"Finger paints : Finger paints"},{"$f":"RIGHT(Table3[[#This Row],[D]],LEN(Table3[[#This Row],[D]])-FIND(\":\",Table3[[#This Row],[D]],1))","v":"Finger paints "},{"$f":"IF(ISNUMBER(FIND(\"_\",Table3[[#This Row],[D]],1)),FIND(\"_\",Table3[[#This Row],[D]],1)-1,FIND(\":\",Table3[[#This Row],[D]],1)-1)","v":4}]
["PC12:Fertilizers","Lawn and garden preparations",{"$f":"LEFT(Table3[[#This Row],[D]],2)&\"_\"&MID(Table3[[#This Row],[D]],3,IF(ISNUMBER(FIND(\"_\",Table3[[#This Row],[D]],1)),FIND(\"_\",Table3[[#This Row],[D]],1),FIND(\":\",Table3[[#This Row],[D]],1))-3)","v":"PC_12"},{"$f":"IF((Table3[[#This Row],[E]]=\"\"),RIGHT(Table3[[#This Row],[D]],LEN(Table3[[#This Row],[D]])-FIND(\":\",Table3[[#This Row],[D]],1)),RIGHT(Table3[[#This Row],[D]],LEN(Table3[[#This Row],[D]])-FIND(\":\",Table3[[#This Row],[D]],1))&\": \"&Table3[[#This Row],[E]])","v":"Fertilizers: Lawn and garden preparations"},{"$f":"RIGHT(Table3[[#This Row],[D]],LEN(Table3[[#This Row],[D]])-FIND(\":\",Table3[[#This Row],[D]],1))","v":"Fertilizers"},{"$f":"IF(ISNUMBER(FIND(\"_\",Table3[[#This Row],[D]],1)),FIND(\"_\",Table3[[#This Row],[D]],1)-1,FIND(\":\",Table3[[#This Row],[D]],1)-1)","v":4}]
["PC13:Fuels","Liquid - subcategories added: Automotive Refuelling",{"$f":"LEFT(Table3[[#This Row],[D]],2)&\"_\"&MID(Table3[[#This Row],[D]],3,IF(ISNUMBER(FIND(\"_\",Table3[[#This Row],[D]],1)),FIND(\"_\",Table3[[#This Row],[D]],1),FIND(\":\",Table3[[#This Row],[D]],1))-3)","v":"PC_13"},{"$f":"IF((Table3[[#This Row],[E]]=\"\"),RIGHT(Table3[[#This Row],[D]],LEN(Table3[[#This Row],[D]])-FIND(\":\",Table3[[#This Row],[D]],1)),RIGHT(Table3[[#This Row],[D]],LEN(Table3[[#This Row],[D]])-FIND(\":\",Table3[[#This Row],[D]],1))&\": \"&Table3[[#This Row],[E]])","v":"Fuels: Liquid - subcategories added: Automotive Refuelling"},{"$f":"RIGHT(Table3[[#This Row],[D]],LEN(Table3[[#This Row],[D]])-FIND(\":\",Table3[[#This Row],[D]],1))","v":"Fuels"},{"$f":"IF(ISNUMBER(FIND(\"_\",Table3[[#This Row],[D]],1)),FIND(\"_\",Table3[[#This Row],[D]],1)-1,FIND(\":\",Table3[[#This Row],[D]],1)-1)","v":4}]
["PC13:Fuels","Liquid - subcategories added: Scooter Refuelling",{"$f":"LEFT(Table3[[#This Row],[D]],2)&\"_\"&MID(Table3[[#This Row],[D]],3,IF(ISNUMBER(FIND(\"_\",Table3[[#This Row],[D]],1)),FIND(\"_\",Table3[[#This Row],[D]],1),FIND(\":\",Table3[[#This Row],[D]],1))-3)","v":"PC_13"},{"$f":"IF((Table3[[#This Row],[E]]=\"\"),RIGHT(Table3[[#This Row],[D]],LEN(Table3[[#This Row],[D]])-FIND(\":\",Table3[[#This Row],[D]],1)),RIGHT(Table3[[#This Row],[D]],LEN(Table3[[#This Row],[D]])-FIND(\":\",Table3[[#This Row],[D]],1))&\": \"&Table3[[#This Row],[E]])","v":"Fuels: Liquid - subcategories added: Scooter Refuelling"},{"$f":"RIGHT(Table3[[#This Row],[D]],LEN(Table3[[#This Row],[D]])-FIND(\":\",Table3[[#This Row],[D]],1))","v":"Fuels"},{"$f":"IF(ISNUMBER(FIND(\"_\",Table3[[#This Row],[D]],1)),FIND(\"_\",Table3[[#This Row],[D]],1)-1,FIND(\":\",Table3[[#This Row],[D]],1)-1)","v":4}]
["PC13:Fuels","Liquid - subcategories added: Garden Equipment - Use",{"$f":"LEFT(Table3[[#This Row],[D]],2)&\"_\"&MID(Table3[[#This Row],[D]],3,IF(ISNUMBER(FIND(\"_\",Table3[[#This Row],[D]],1)),FIND(\"_\",Table3[[#This Row],[D]],1),FIND(\":\",Table3[[#This Row],[D]],1))-3)","v":"PC_13"},{"$f":"IF((Table3[[#This Row],[E]]=\"\"),RIGHT(Table3[[#This Row],[D]],LEN(Table3[[#This Row],[D]])-FIND(\":\",Table3[[#This Row],[D]],1)),RIGHT(Table3[[#This Row],[D]],LEN(Table3[[#This Row],[D]])-FIND(\":\",Table3[[#This Row],[D]],1))&\": \"&Table3[[#This Row],[E]])","v":"Fuels: Liquid - subcategories added: Garden Equipment - Use"},{"$f":"RIGHT(Table3[[#This Row],[D]],LEN(Table3[[#This Row],[D]])-FIND(\":\",Table3[[#This Row],[D]],1))","v":"Fuels"},{"$f":"IF(ISNUMBER(FIND(\"_\",Table3[[#This Row],[D]],1)),FIND(\"_\",Table3[[#This Row],[D]],1)-1,FIND(\":\",Table3[[#This Row],[D]],1)-1)","v":4}]
["PC13:Fuels","Liquid (subcategories added): Garden Equipment - Refueling",{"$f":"LEFT(Table3[[#This Row],[D]],2)&\"_\"&MID(Table3[[#This Row],[D]],3,IF(ISNUMBER(FIND(\"_\",Table3[[#This Row],[D]],1)),FIND(\"_\",Table3[[#This Row],[D]],1),FIND(\":\",Table3[[#This Row],[D]],1))-3)","v":"PC_13"},{"$f":"IF((Table3[[#This Row],[E]]=\"\"),RIGHT(Table3[[#This Row],[D]],LEN(Table3[[#This Row],[D]])-FIND(\":\",Table3[[#This Row],[D]],1)),RIGHT(Table3[[#This Row],[D]],LEN(Table3[[#This Row],[D]])-FIND(\":\",Table3[[#This Row],[D]],1))&\": \"&Table3[[#This Row],[E]])","v":"Fuels: Liquid (subcategories added): Garden Equipment - Refueling"},{"$f":"RIGHT(Table3[[#This Row],[D]],LEN(Table3[[#This Row],[D]])-FIND(\":\",Table3[[#This Row],[D]],1))","v":"Fuels"},{"$f":"IF(ISNUMBER(FIND(\"_\",Table3[[#This Row],[D]],1)),FIND(\"_\",Table3[[#This Row],[D]],1)-1,FIND(\":\",Table3[[#This Row],[D]],1)-1)","v":4}]
["PC13:Fuels","Liquid (subcategories added): Home space heater fuel",{"$f":"LEFT(Table3[[#This Row],[D]],2)&\"_\"&MID(Table3[[#This Row],[D]],3,IF(ISNUMBER(FIND(\"_\",Table3[[#This Row],[D]],1)),FIND(\"_\",Table3[[#This Row],[D]],1),FIND(\":\",Table3[[#This Row],[D]],1))-3)","v":"PC_13"},{"$f":"IF((Table3[[#This Row],[E]]=\"\"),RIGHT(Table3[[#This Row],[D]],LEN(Table3[[#This Row],[D]])-FIND(\":\",Table3[[#This Row],[D]],1)),RIGHT(Table3[[#This Row],[D]],LEN(Table3[[#This Row],[D]])-FIND(\":\",Table3[[#This Row],[D]],1))&\": \"&Table3[[#This Row],[E]])","v":"Fuels: Liquid (subcategories added): Home space heater fuel"},{"$f":"RIGHT(Table3[[#This Row],[D]],LEN(Table3[[#This Row],[D]])-FIND(\":\",Table3[[#This Row],[D]],1))","v":"Fuels"},{"$f":"IF(ISNUMBER(FIND(\"_\",Table3[[#This Row],[D]],1)),FIND(\"_\",Table3[[#This Row],[D]],1)-1,FIND(\":\",Table3[[#This Row],[D]],1)-1)","v":4}]
["PC13:Fuels","Liquid - subcategories added: Lamp oil",{"$f":"LEFT(Table3[[#This Row],[D]],2)&\"_\"&MID(Table3[[#This Row],[D]],3,IF(ISNUMBER(FIND(\"_\",Table3[[#This Row],[D]],1)),FIND(\"_\",Table3[[#This Row],[D]],1),FIND(\":\",Table3[[#This Row],[D]],1))-3)","v":"PC_13"},{"$f":"IF((Table3[[#This Row],[E]]=\"\"),RIGHT(Table3[[#This Row],[D]],LEN(Table3[[#This Row],[D]])-FIND(\":\",Table3[[#This Row],[D]],1)),RIGHT(Table3[[#This Row],[D]],LEN(Table3[[#This Row],[D]])-FIND(\":\",Table3[[#This Row],[D]],1))&\": \"&Table3[[#This Row],[E]])","v":"Fuels: Liquid - subcategories added: Lamp oil"},{"$f":"RIGHT(Table3[[#This Row],[D]],LEN(Table3[[#This Row],[D]])-FIND(\":\",Table3[[#This Row],[D]],1))","v":"Fuels"},{"$f":"IF(ISNUMBER(FIND(\"_\",Table3[[#This Row],[D]],1)),FIND(\"_\",Table3[[#This Row],[D]],1)-1,FIND(\":\",Table3[[#This Row],[D]],1)-1)","v":4}]
["PC15_n: Non-metal surface treatment products","Waterborne latex wall paint",{"$f":"LEFT(Table3[[#This Row],[D]],2)&\"_\"&MID(Table3[[#This Row],[D]],3,IF(ISNUMBER(FIND(\"_\",Table3[[#This Row],[D]],1)),FIND(\"_\",Table3[[#This Row],[D]],1),FIND(\":\",Table3[[#This Row],[D]],1))-3)","v":"PC_15"},{"$f":"IF((Table3[[#This Row],[E]]=\"\"),RIGHT(Table3[[#This Row],[D]],LEN(Table3[[#This Row],[D]])-FIND(\":\",Table3[[#This Row],[D]],1)),RIGHT(Table3[[#This Row],[D]],LEN(Table3[[#This Row],[D]])-FIND(\":\",Table3[[#This Row],[D]],1))&\": \"&Table3[[#This Row],[E]])","v":" Non-metal surface treatment products: Waterborne latex wall paint"},{"$f":"RIGHT(Table3[[#This Row],[D]],LEN(Table3[[#This Row],[D]])-FIND(\":\",Table3[[#This Row],[D]],1))","v":" Non-metal surface treatment products"},{"$f":"IF(ISNUMBER(FIND(\"_\",Table3[[#This Row],[D]],1)),FIND(\"_\",Table3[[#This Row],[D]],1)-1,FIND(\":\",Table3[[#This Row],[D]],1)-1)","v":4}]
["PC15_n: Non-metal surface treatment products","Solvent rich, high solid, water borne paint",{"$f":"LEFT(Table3[[#This Row],[D]],2)&\"_\"&MID(Table3[[#This Row],[D]],3,IF(ISNUMBER(FIND(\"_\",Table3[[#This Row],[D]],1)),FIND(\"_\",Table3[[#This Row],[D]],1),FIND(\":\",Table3[[#This Row],[D]],1))-3)","v":"PC_15"},{"$f":"IF((Table3[[#This Row],[E]]=\"\"),RIGHT(Table3[[#This Row],[D]],LEN(Table3[[#This Row],[D]])-FIND(\":\",Table3[[#This Row],[D]],1)),RIGHT(Table3[[#This Row],[D]],LEN(Table3[[#This Row],[D]])-FIND(\":\",Table3[[#This Row],[D]],1))&\": \"&Table3[[#This Row],[E]])","v":" Non-metal surface treatment products: Solvent rich, high solid, water borne paint"},{"$f":"RIGHT(Table3[[#This Row],[D]],LEN(Table3[[#This Row],[D]])-FIND(\":\",Table3[[#This Row],[D]],1))","v":" Non-metal surface treatment products"},{"$f":"IF(ISNUMBER(FIND(\"_\",Table3[[#This Row],[D]],1)),FIND(\"_\",Table3[[#This Row],[D]],1)-1,FIND(\":\",Table3[[#This Row],[D]],1)-1)","v":4}]
["PC15_n: Non-metal surface treatment products","Aerosol spray can ",{"$f":"LEFT(Table3[[#This Row],[D]],2)&\"_\"&MID(Table3[[#This Row],[D]],3,IF(ISNUMBER(FIND(\"_\",Table3[[#This Row],[D]],1)),FIND(\"_\",Table3[[#This Row],[D]],1),FIND(\":\",Table3[[#This Row],[D]],1))-3)","v":"PC_15"},{"$f":"IF((Table3[[#This Row],[E]]=\"\"),RIGHT(Table3[[#This Row],[D]],LEN(Table3[[#This Row],[D]])-FIND(\":\",Table3[[#This Row],[D]],1)),RIGHT(Table3[[#This Row],[D]],LEN(Table3[[#This Row],[D]])-FIND(\":\",Table3[[#This Row],[D]],1))&\": \"&Table3[[#This Row],[E]])","v":" Non-metal surface treatment products: Aerosol spray can "},{"$f":"RIGHT(Table3[[#This Row],[D]],LEN(Table3[[#This Row],[D]])-FIND(\":\",Table3[[#This Row],[D]],1))","v":" Non-metal surface treatment products"},{"$f":"IF(ISNUMBER(FIND(\"_\",Table3[[#This Row],[D]],1)),FIND(\"_\",Table3[[#This Row],[D]],1)-1,FIND(\":\",Table3[[#This Row],[D]],1)-1)","v":4}]
["PC15_n: Non-metal surface treatment products","Removers (paint-, glue-, wall paper-, sealant-remover)",{"$f":"LEFT(Table3[[#This Row],[D]],2)&\"_\"&MID(Table3[[#This Row],[D]],3,IF(ISNUMBER(FIND(\"_\",Table3[[#This Row],[D]],1)),FIND(\"_\",Table3[[#This Row],[D]],1),FIND(\":\",Table3[[#This Row],[D]],1))-3)","v":"PC_15"},{"$f":"IF((Table3[[#This Row],[E]]=\"\"),RIGHT(Table3[[#This Row],[D]],LEN(Table3[[#This Row],[D]])-FIND(\":\",Table3[[#This Row],[D]],1)),RIGHT(Table3[[#This Row],[D]],LEN(Table3[[#This Row],[D]])-FIND(\":\",Table3[[#This Row],[D]],1))&\": \"&Table3[[#This Row],[E]])","v":" Non-metal surface treatment products: Removers (paint-, glue-, wall paper-, sealant-remover)"},{"$f":"RIGHT(Table3[[#This Row],[D]],LEN(Table3[[#This Row],[D]])-FIND(\":\",Table3[[#This Row],[D]],1))","v":" Non-metal surface treatment products"},{"$f":"IF(ISNUMBER(FIND(\"_\",Table3[[#This Row],[D]],1)),FIND(\"_\",Table3[[#This Row],[D]],1)-1,FIND(\":\",Table3[[#This Row],[D]],1)-1)","v":4}]
["PC16_n: Heat transfer fluids","Liquids",{"$f":"LEFT(Table3[[#This Row],[D]],2)&\"_\"&MID(Table3[[#This Row],[D]],3,IF(ISNUMBER(FIND(\"_\",Table3[[#This Row],[D]],1)),FIND(\"_\",Table3[[#This Row],[D]],1),FIND(\":\",Table3[[#This Row],[D]],1))-3)","v":"PC_16"},{"$f":"IF((Table3[[#This Row],[E]]=\"\"),RIGHT(Table3[[#This Row],[D]],LEN(Table3[[#This Row],[D]])-FIND(\":\",Table3[[#This Row],[D]],1)),RIGHT(Table3[[#This Row],[D]],LEN(Table3[[#This Row],[D]])-FIND(\":\",Table3[[#This Row],[D]],1))&\": \"&Table3[[#This Row],[E]])","v":" Heat transfer fluids: Liquids"},{"$f":"RIGHT(Table3[[#This Row],[D]],LEN(Table3[[#This Row],[D]])-FIND(\":\",Table3[[#This Row],[D]],1))","v":" Heat transfer fluids"},{"$f":"IF(ISNUMBER(FIND(\"_\",Table3[[#This Row],[D]],1)),FIND(\"_\",Table3[[#This Row],[D]],1)-1,FIND(\":\",Table3[[#This Row],[D]],1)-1)","v":4}]
["PC17_n: Hydraulic fluids","Liquids",{"$f":"LEFT(Table3[[#This Row],[D]],2)&\"_\"&MID(Table3[[#This Row],[D]],3,IF(ISNUMBER(FIND(\"_\",Table3[[#This Row],[D]],1)),FIND(\"_\",Table3[[#This Row],[D]],1),FIND(\":\",Table3[[#This Row],[D]],1))-3)","v":"PC_17"},{"$f":"IF((Table3[[#This Row],[E]]=\"\"),RIGHT(Table3[[#This Row],[D]],LEN(Table3[[#This Row],[D]])-FIND(\":\",Table3[[#This Row],[D]],1)),RIGHT(Table3[[#This Row],[D]],LEN(Table3[[#This Row],[D]])-FIND(\":\",Table3[[#This Row],[D]],1))&\": \"&Table3[[#This Row],[E]])","v":" Hydraulic fluids: Liquids"},{"$f":"RIGHT(Table3[[#This Row],[D]],LEN(Table3[[#This Row],[D]])-FIND(\":\",Table3[[#This Row],[D]],1))","v":" Hydraulic fluids"},{"$f":"IF(ISNUMBER(FIND(\"_\",Table3[[#This Row],[D]],1)),FIND(\"_\",Table3[[#This Row],[D]],1)-1,FIND(\":\",Table3[[#This Row],[D]],1)-1)","v":4}]
["PC18_n: Ink and toners","Inks and toners.",{"$f":"LEFT(Table3[[#This Row],[D]],2)&\"_\"&MID(Table3[[#This Row],[D]],3,IF(ISNUMBER(FIND(\"_\",Table3[[#This Row],[D]],1)),FIND(\"_\",Table3[[#This Row],[D]],1),FIND(\":\",Table3[[#This Row],[D]],1))-3)","v":"PC_18"},{"$f":"IF((Table3[[#This Row],[E]]=\"\"),RIGHT(Table3[[#This Row],[D]],LEN(Table3[[#This Row],[D]])-FIND(\":\",Table3[[#This Row],[D]],1)),RIGHT(Table3[[#This Row],[D]],LEN(Table3[[#This Row],[D]])-FIND(\":\",Table3[[#This Row],[D]],1))&\": \"&Table3[[#This Row],[E]])","v":" Ink and toners: Inks and toners."},{"$f":"RIGHT(Table3[[#This Row],[D]],LEN(Table3[[#This Row],[D]])-FIND(\":\",Table3[[#This Row],[D]],1))","v":" Ink and toners"},{"$f":"IF(ISNUMBER(FIND(\"_\",Table3[[#This Row],[D]],1)),FIND(\"_\",Table3[[#This Row],[D]],1)-1,FIND(\":\",Table3[[#This Row],[D]],1)-1)","v":4}]
["PC23_n: Leather tanning, dye, finishing, impregnation and care products","Polishes, wax / cream (floor, furniture, shoes)",{"$f":"LEFT(Table3[[#This Row],[D]],2)&\"_\"&MID(Table3[[#This Row],[D]],3,IF(ISNUMBER(FIND(\"_\",Table3[[#This Row],[D]],1)),FIND(\"_\",Table3[[#This Row],[D]],1),FIND(\":\",Table3[[#This Row],[D]],1))-3)","v":"PC_23"},{"$f":"IF((Table3[[#This Row],[E]]=\"\"),RIGHT(Table3[[#This Row],[D]],LEN(Table3[[#This Row],[D]])-FIND(\":\",Table3[[#This Row],[D]],1)),RIGHT(Table3[[#This Row],[D]],LEN(Table3[[#This Row],[D]])-FIND(\":\",Table3[[#This Row],[D]],1))&\": \"&Table3[[#This Row],[E]])","v":" Leather tanning, dye, finishing, impregnation and care products: Polishes, wax / cream (floor, furniture, shoes)"},{"$f":"RIGHT(Table3[[#This Row],[D]],LEN(Table3[[#This Row],[D]])-FIND(\":\",Table3[[#This Row],[D]],1))","v":" Leather tanning, dye, finishing, impregnation and care products"},{"$f":"IF(ISNUMBER(FIND(\"_\",Table3[[#This Row],[D]],1)),FIND(\"_\",Table3[[#This Row],[D]],1)-1,FIND(\":\",Table3[[#This Row],[D]],1)-1)","v":4}]
["PC23_n: Leather tanning, dye, finishing, impregnation and care products","Polishes, spray (furniture, shoes)",{"$f":"LEFT(Table3[[#This Row],[D]],2)&\"_\"&MID(Table3[[#This Row],[D]],3,IF(ISNUMBER(FIND(\"_\",Table3[[#This Row],[D]],1)),FIND(\"_\",Table3[[#This Row],[D]],1),FIND(\":\",Table3[[#This Row],[D]],1))-3)","v":"PC_23"},{"$f":"IF((Table3[[#This Row],[E]]=\"\"),RIGHT(Table3[[#This Row],[D]],LEN(Table3[[#This Row],[D]])-FIND(\":\",Table3[[#This Row],[D]],1)),RIGHT(Table3[[#This Row],[D]],LEN(Table3[[#This Row],[D]])-FIND(\":\",Table3[[#This Row],[D]],1))&\": \"&Table3[[#This Row],[E]])","v":" Leather tanning, dye, finishing, impregnation and care products: Polishes, spray (furniture, shoes)"},{"$f":"RIGHT(Table3[[#This Row],[D]],LEN(Table3[[#This Row],[D]])-FIND(\":\",Table3[[#This Row],[D]],1))","v":" Leather tanning, dye, finishing, impregnation and care products"},{"$f":"IF(ISNUMBER(FIND(\"_\",Table3[[#This Row],[D]],1)),FIND(\"_\",Table3[[#This Row],[D]],1)-1,FIND(\":\",Table3[[#This Row],[D]],1)-1)","v":4}]
["PC24: Lubricants, greases, and release products","Liquids",{"$f":"LEFT(Table3[[#This Row],[D]],2)&\"_\"&MID(Table3[[#This Row],[D]],3,IF(ISNUMBER(FIND(\"_\",Table3[[#This Row],[D]],1)),FIND(\"_\",Table3[[#This Row],[D]],1),FIND(\":\",Table3[[#This Row],[D]],1))-3)","v":"PC_24"},{"$f":"IF((Table3[[#This Row],[E]]=\"\"),RIGHT(Table3[[#This Row],[D]],LEN(Table3[[#This Row],[D]])-FIND(\":\",Table3[[#This Row],[D]],1)),RIGHT(Table3[[#This Row],[D]],LEN(Table3[[#This Row],[D]])-FIND(\":\",Table3[[#This Row],[D]],1))&\": \"&Table3[[#This Row],[E]])","v":" Lubricants, greases, and release products: Liquids"},{"$f":"RIGHT(Table3[[#This Row],[D]],LEN(Table3[[#This Row],[D]])-FIND(\":\",Table3[[#This Row],[D]],1))","v":" Lubricants, greases, and release products"},{"$f":"IF(ISNUMBER(FIND(\"_\",Table3[[#This Row],[D]],1)),FIND(\"_\",Table3[[#This Row],[D]],1)-1,FIND(\":\",Table3[[#This Row],[D]],1)-1)","v":4}]
["PC24: Lubricants, greases, and release products","Pastes",{"$f":"LEFT(Table3[[#This Row],[D]],2)&\"_\"&MID(Table3[[#This Row],[D]],3,IF(ISNUMBER(FIND(\"_\",Table3[[#This Row],[D]],1)),FIND(\"_\",Table3[[#This Row],[D]],1),FIND(\":\",Table3[[#This Row],[D]],1))-3)","v":"PC_24"},{"$f":"IF((Table3[[#This Row],[E]]=\"\"),RIGHT(Table3[[#This Row],[D]],LEN(Table3[[#This Row],[D]])-FIND(\":\",Table3[[#This Row],[D]],1)),RIGHT(Table3[[#This Row],[D]],LEN(Table3[[#This Row],[D]])-FIND(\":\",Table3[[#This Row],[D]],1))&\": \"&Table3[[#This Row],[E]])","v":" Lubricants, greases, and release products: Pastes"},{"$f":"RIGHT(Table3[[#This Row],[D]],LEN(Table3[[#This Row],[D]])-FIND(\":\",Table3[[#This Row],[D]],1))","v":" Lubricants, greases, and release products"},{"$f":"IF(ISNUMBER(FIND(\"_\",Table3[[#This Row],[D]],1)),FIND(\"_\",Table3[[#This Row],[D]],1)-1,FIND(\":\",Table3[[#This Row],[D]],1)-1)","v":4}]
["PC24: Lubricants, greases, and release products","Sprays",{"$f":"LEFT(Table3[[#This Row],[D]],2)&\"_\"&MID(Table3[[#This Row],[D]],3,IF(ISNUMBER(FIND(\"_\",Table3[[#This Row],[D]],1)),FIND(\"_\",Table3[[#This Row],[D]],1),FIND(\":\",Table3[[#This Row],[D]],1))-3)","v":"PC_24"},{"$f":"IF((Table3[[#This Row],[E]]=\"\"),RIGHT(Table3[[#This Row],[D]],LEN(Table3[[#This Row],[D]])-FIND(\":\",Table3[[#This Row],[D]],1)),RIGHT(Table3[[#This Row],[D]],LEN(Table3[[#This Row],[D]])-FIND(\":\",Table3[[#This Row],[D]],1))&\": \"&Table3[[#This Row],[E]])","v":" Lubricants, greases, and release products: Sprays"},{"$f":"RIGHT(Table3[[#This Row],[D]],LEN(Table3[[#This Row],[D]])-FIND(\":\",Table3[[#This Row],[D]],1))","v":" Lubricants, greases, and release products"},{"$f":"IF(ISNUMBER(FIND(\"_\",Table3[[#This Row],[D]],1)),FIND(\"_\",Table3[[#This Row],[D]],1)-1,FIND(\":\",Table3[[#This Row],[D]],1)-1)","v":4}]
["PC27_n: Plant protection products",null,{"$f":"LEFT(Table3[[#This Row],[D]],2)&\"_\"&MID(Table3[[#This Row],[D]],3,IF(ISNUMBER(FIND(\"_\",Table3[[#This Row],[D]],1)),FIND(\"_\",Table3[[#This Row],[D]],1),FIND(\":\",Table3[[#This Row],[D]],1))-3)","v":"PC_27"},{"$f":"IF((Table3[[#This Row],[E]]=\"\"),RIGHT(Table3[[#This Row],[D]],LEN(Table3[[#This Row],[D]])-FIND(\":\",Table3[[#This Row],[D]],1)),RIGHT(Table3[[#This Row],[D]],LEN(Table3[[#This Row],[D]])-FIND(\":\",Table3[[#This Row],[D]],1))&\": \"&Table3[[#This Row],[E]])","v":" Plant protection products"},{"$f":"RIGHT(Table3[[#This Row],[D]],LEN(Table3[[#This Row],[D]])-FIND(\":\",Table3[[#This Row],[D]],1))","v":" Plant protection products"},{"$f":"IF(ISNUMBER(FIND(\"_\",Table3[[#This Row],[D]],1)),FIND(\"_\",Table3[[#This Row],[D]],1)-1,FIND(\":\",Table3[[#This Row],[D]],1)-1)","v":4}]
["PC31:Polishes and wax blends","Polishes, wax / cream (floor, furniture, shoes)",{"$f":"LEFT(Table3[[#This Row],[D]],2)&\"_\"&MID(Table3[[#This Row],[D]],3,IF(ISNUMBER(FIND(\"_\",Table3[[#This Row],[D]],1)),FIND(\"_\",Table3[[#This Row],[D]],1),FIND(\":\",Table3[[#This Row],[D]],1))-3)","v":"PC_31"},{"$f":"IF((Table3[[#This Row],[E]]=\"\"),RIGHT(Table3[[#This Row],[D]],LEN(Table3[[#This Row],[D]])-FIND(\":\",Table3[[#This Row],[D]],1)),RIGHT(Table3[[#This Row],[D]],LEN(Table3[[#This Row],[D]])-FIND(\":\",Table3[[#This Row],[D]],1))&\": \"&Table3[[#This Row],[E]])","v":"Polishes and wax blends: Polishes, wax / cream (floor, furniture, shoes)"},{"$f":"RIGHT(Table3[[#This Row],[D]],LEN(Table3[[#This Row],[D]])-FIND(\":\",Table3[[#This Row],[D]],1))","v":"Polishes and wax blends"},{"$f":"IF(ISNUMBER(FIND(\"_\",Table3[[#This Row],[D]],1)),FIND(\"_\",Table3[[#This Row],[D]],1)-1,FIND(\":\",Table3[[#This Row],[D]],1)-1)","v":4}]
["PC31:Polishes and wax blends","Polishes, spray (furniture, shoes)",{"$f":"LEFT(Table3[[#This Row],[D]],2)&\"_\"&MID(Table3[[#This Row],[D]],3,IF(ISNUMBER(FIND(\"_\",Table3[[#This Row],[D]],1)),FIND(\"_\",Table3[[#This Row],[D]],1),FIND(\":\",Table3[[#This Row],[D]],1))-3)","v":"PC_31"},{"$f":"IF((Table3[[#This Row],[E]]=\"\"),RIGHT(Table3[[#This Row],[D]],LEN(Table3[[#This Row],[D]])-FIND(\":\",Table3[[#This Row],[D]],1)),RIGHT(Table3[[#This Row],[D]],LEN(Table3[[#This Row],[D]])-FIND(\":\",Table3[[#This Row],[D]],1))&\": \"&Table3[[#This Row],[E]])","v":"Polishes and wax blends: Polishes, spray (furniture, shoes)"},{"$f":"RIGHT(Table3[[#This Row],[D]],LEN(Table3[[#This Row],[D]])-FIND(\":\",Table3[[#This Row],[D]],1))","v":"Polishes and wax blends"},{"$f":"IF(ISNUMBER(FIND(\"_\",Table3[[#This Row],[D]],1)),FIND(\"_\",Table3[[#This Row],[D]],1)-1,FIND(\":\",Table3[[#This Row],[D]],1)-1)","v":4}]
["PC34_n: Textile dyes, finishing and impregnating products",null,{"$f":"LEFT(Table3[[#This Row],[D]],2)&\"_\"&MID(Table3[[#This Row],[D]],3,IF(ISNUMBER(FIND(\"_\",Table3[[#This Row],[D]],1)),FIND(\"_\",Table3[[#This Row],[D]],1),FIND(\":\",Table3[[#This Row],[D]],1))-3)","v":"PC_34"},{"$f":"IF((Table3[[#This Row],[E]]=\"\"),RIGHT(Table3[[#This Row],[D]],LEN(Table3[[#This Row],[D]])-FIND(\":\",Table3[[#This Row],[D]],1)),RIGHT(Table3[[#This Row],[D]],LEN(Table3[[#This Row],[D]])-FIND(\":\",Table3[[#This Row],[D]],1))&\": \"&Table3[[#This Row],[E]])","v":" Textile dyes, finishing and impregnating products"},{"$f":"RIGHT(Table3[[#This Row],[D]],LEN(Table3[[#This Row],[D]])-FIND(\":\",Table3[[#This Row],[D]],1))","v":" Textile dyes, finishing and impregnating products"},{"$f":"IF(ISNUMBER(FIND(\"_\",Table3[[#This Row],[D]],1)),FIND(\"_\",Table3[[#This Row],[D]],1)-1,FIND(\":\",Table3[[#This Row],[D]],1)-1)","v":4}]
["PC35:Washing and cleaning products (including solvent based products)","Laundry and dish washing products",{"$f":"LEFT(Table3[[#This Row],[D]],2)&\"_\"&MID(Table3[[#This Row],[D]],3,IF(ISNUMBER(FIND(\"_\",Table3[[#This Row],[D]],1)),FIND(\"_\",Table3[[#This Row],[D]],1),FIND(\":\",Table3[[#This Row],[D]],1))-3)","v":"PC_35"},{"$f":"IF((Table3[[#This Row],[E]]=\"\"),RIGHT(Table3[[#This Row],[D]],LEN(Table3[[#This Row],[D]])-FIND(\":\",Table3[[#This Row],[D]],1)),RIGHT(Table3[[#This Row],[D]],LEN(Table3[[#This Row],[D]])-FIND(\":\",Table3[[#This Row],[D]],1))&\": \"&Table3[[#This Row],[E]])","v":"Washing and cleaning products (including solvent based products): Laundry and dish washing products"},{"$f":"RIGHT(Table3[[#This Row],[D]],LEN(Table3[[#This Row],[D]])-FIND(\":\",Table3[[#This Row],[D]],1))","v":"Washing and cleaning products (including solvent based products)"},{"$f":"IF(ISNUMBER(FIND(\"_\",Table3[[#This Row],[D]],1)),FIND(\"_\",Table3[[#This Row],[D]],1)-1,FIND(\":\",Table3[[#This Row],[D]],1)-1)","v":4}]
["PC35:Washing and cleaning products (including solvent based products)","Cleaners, liquids (all purpose cleaners, sanitary products, floor cleaners, glass cleaners, carpet cleaners, metal cleaners ) ",{"$f":"LEFT(Table3[[#This Row],[D]],2)&\"_\"&MID(Table3[[#This Row],[D]],3,IF(ISNUMBER(FIND(\"_\",Table3[[#This Row],[D]],1)),FIND(\"_\",Table3[[#This Row],[D]],1),FIND(\":\",Table3[[#This Row],[D]],1))-3)","v":"PC_35"},{"$f":"IF((Table3[[#This Row],[E]]=\"\"),RIGHT(Table3[[#This Row],[D]],LEN(Table3[[#This Row],[D]])-FIND(\":\",Table3[[#This Row],[D]],1)),RIGHT(Table3[[#This Row],[D]],LEN(Table3[[#This Row],[D]])-FIND(\":\",Table3[[#This Row],[D]],1))&\": \"&Table3[[#This Row],[E]])","v":"Washing and cleaning products (including solvent based products): Cleaners, liquids (all purpose cleaners, sanitary products, floor cleaners, glass cleaners, carpet cleaners, metal cleaners ) "},{"$f":"RIGHT(Table3[[#This Row],[D]],LEN(Table3[[#This Row],[D]])-FIND(\":\",Table3[[#This Row],[D]],1))","v":"Washing and cleaning products (including solvent based products)"},{"$f":"IF(ISNUMBER(FIND(\"_\",Table3[[#This Row],[D]],1)),FIND(\"_\",Table3[[#This Row],[D]],1)-1,FIND(\":\",Table3[[#This Row],[D]],1)-1)","v":4}]
["PC35:Washing and cleaning products (including solvent based products)","Cleaners, trigger sprays (all purpose cleaners, sanitary products,  glass cleaners) ",{"$f":"LEFT(Table3[[#This Row],[D]],2)&\"_\"&MID(Table3[[#This Row],[D]],3,IF(ISNUMBER(FIND(\"_\",Table3[[#This Row],[D]],1)),FIND(\"_\",Table3[[#This Row],[D]],1),FIND(\":\",Table3[[#This Row],[D]],1))-3)","v":"PC_35"},{"$f":"IF((Table3[[#This Row],[E]]=\"\"),RIGHT(Table3[[#This Row],[D]],LEN(Table3[[#This Row],[D]])-FIND(\":\",Table3[[#This Row],[D]],1)),RIGHT(Table3[[#This Row],[D]],LEN(Table3[[#This Row],[D]])-FIND(\":\",Table3[[#This Row],[D]],1))&\": \"&Table3[[#This Row],[E]])","v":"Washing and cleaning products (including solvent based products): Cleaners, trigger sprays (all purpose cleaners, sanitary products,  glass cleaners) "},{"$f":"RIGHT(Table3[[#This Row],[D]],LEN(Table3[[#This Row],[D]])-FIND(\":\",Table3[[#This Row],[D]],1))","v":"Washing and cleaning products (including solvent based products)"},{"$f":"IF(ISNUMBER(FIND(\"_\",Table3[[#This Row],[D]],1)),FIND(\"_\",Table3[[#This Row],[D]],1)-1,FIND(\":\",Table3[[#This Row],[D]],1)-1)","v":4}]
["PC36_n: Water softners",null,{"$f":"LEFT(Table3[[#This Row],[D]],2)&\"_\"&MID(Table3[[#This Row],[D]],3,IF(ISNUMBER(FIND(\"_\",Table3[[#This Row],[D]],1)),FIND(\"_\",Table3[[#This Row],[D]],1),FIND(\":\",Table3[[#This Row],[D]],1))-3)","v":"PC_36"},{"$f":"IF((Table3[[#This Row],[E]]=\"\"),RIGHT(Table3[[#This Row],[D]],LEN(Table3[[#This Row],[D]])-FIND(\":\",Table3[[#This Row],[D]],1)),RIGHT(Table3[[#This Row],[D]],LEN(Table3[[#This Row],[D]])-FIND(\":\",Table3[[#This Row],[D]],1))&\": \"&Table3[[#This Row],[E]])","v":" Water softners"},{"$f":"RIGHT(Table3[[#This Row],[D]],LEN(Table3[[#This Row],[D]])-FIND(\":\",Table3[[#This Row],[D]],1))","v":" Water softners"},{"$f":"IF(ISNUMBER(FIND(\"_\",Table3[[#This Row],[D]],1)),FIND(\"_\",Table3[[#This Row],[D]],1)-1,FIND(\":\",Table3[[#This Row],[D]],1)-1)","v":4}]
["PC37_n: Water treatment chemicals",null,{"$f":"LEFT(Table3[[#This Row],[D]],2)&\"_\"&MID(Table3[[#This Row],[D]],3,IF(ISNUMBER(FIND(\"_\",Table3[[#This Row],[D]],1)),FIND(\"_\",Table3[[#This Row],[D]],1),FIND(\":\",Table3[[#This Row],[D]],1))-3)","v":"PC_37"},{"$f":"IF((Table3[[#This Row],[E]]=\"\"),RIGHT(Table3[[#This Row],[D]],LEN(Table3[[#This Row],[D]])-FIND(\":\",Table3[[#This Row],[D]],1)),RIGHT(Table3[[#This Row],[D]],LEN(Table3[[#This Row],[D]])-FIND(\":\",Table3[[#This Row],[D]],1))&\": \"&Table3[[#This Row],[E]])","v":" Water treatment chemicals"},{"$f":"RIGHT(Table3[[#This Row],[D]],LEN(Table3[[#This Row],[D]])-FIND(\":\",Table3[[#This Row],[D]],1))","v":" Water treatment chemicals"},{"$f":"IF(ISNUMBER(FIND(\"_\",Table3[[#This Row],[D]],1)),FIND(\"_\",Table3[[#This Row],[D]],1)-1,FIND(\":\",Table3[[#This Row],[D]],1)-1)","v":4}]
["PC38_n: Welding and soldering products, flux products",null,{"$f":"LEFT(Table3[[#This Row],[D]],2)&\"_\"&MID(Table3[[#This Row],[D]],3,IF(ISNUMBER(FIND(\"_\",Table3[[#This Row],[D]],1)),FIND(\"_\",Table3[[#This Row],[D]],1),FIND(\":\",Table3[[#This Row],[D]],1))-3)","v":"PC_38"},{"$f":"IF((Table3[[#This Row],[E]]=\"\"),RIGHT(Table3[[#This Row],[D]],LEN(Table3[[#This Row],[D]])-FIND(\":\",Table3[[#This Row],[D]],1)),RIGHT(Table3[[#This Row],[D]],LEN(Table3[[#This Row],[D]])-FIND(\":\",Table3[[#This Row],[D]],1))&\": \"&Table3[[#This Row],[E]])","v":" Welding and soldering products, flux products"},{"$f":"RIGHT(Table3[[#This Row],[D]],LEN(Table3[[#This Row],[D]])-FIND(\":\",Table3[[#This Row],[D]],1))","v":" Welding and soldering products, flux products"},{"$f":"IF(ISNUMBER(FIND(\"_\",Table3[[#This Row],[D]],1)),FIND(\"_\",Table3[[#This Row],[D]],1)-1,FIND(\":\",Table3[[#This Row],[D]],1)-1)","v":4}]

{"sheet":"Sheet3","index":3,"n_rows":9,"n_cols":2,"rows_kept":9,"cut":false,"hidden":true,"merged":[]}
["Value","TRA"]
[35.700000000000003,"FINGERTIPS_ID"]
[35.729166666666671,"FINGERTIPS_ID"]
[71.400000000000006,"TWO_FINGERTIPS_ID"]
[214.4,"PALM_OF_ONE_HAND_ID"]
[254.4,"PALM_OF_ONE_HAND_ID"]
[428.75,"INSIDE_HANDS_ID"]
[857.5,"HANDS_ID"]
[6600,"WHOLE_BODY_ID"]